fUST/lending_fUST_20250525
["ID","MTS","AMOUNT","RATE_DAILY","PERIOD"]
[362285129,1748157032301,-238.36,0.00016221,2]
[362285130,1748157032310,-300.0,0.00016761,2]
[362285131,1748157032319,-59.80471941,0.00016762,3]
[362285132,1748157032484,-10359.57063375,0.00016762,3]
[362285133,1748157032494,-6732.19692673,0.00016762,2]
[362285161,1748157038163,-543.73900073,0.00016762,2]
[362285164,1748157038184,-4209.36835794,0.00016762,2]
[362285213,1748157041683,-3258.6957146,0.00016762,2]
[362285215,1748157041693,-278.09,0.00016845,2]
[362285228,1748157041806,-176.75339351,0.00016946,2]
[362285230,1748157041815,-98.3746071,0.00017469,2]
[362285362,1748157043317,-219.4453929,0.00017469,2]
[362285364,1748157043327,-176.75339351,0.0001747,2]
[362285366,1748157043337,-294.42857485,0.00018027,2]
[362285368,1748157043349,-5.57142515,0.00018027,2]
[362285370,1748157043358,-273.61305825,0.00018028,2]
[362285626,1748157046306,-226.38694175,0.00018028,2]
[362285627,1748157046315,-500.0,0.00018028,2]
[362285628,1748157046325,-460.44531479,0.00018028,2]
[362285629,1748157046334,-643.06661699,0.00018028,2]
[362285630,1748157046343,-501.79554139,0.00018028,2]
[362285631,1748157046353,-500.0,0.00018028,2]
[362285632,1748157046362,-12.69408987,0.00018028,2]
[362285633,1748157046373,-256.28951964,0.00018028,2]
[362285634,1748157046384,-423.15396316,0.00018028,2]
[362285635,1748157046393,-13.57603684,0.00018028,2]
[362285636,1748157046406,-486.42396316,0.00018028,2]
[362285637,1748157046415,-692.13757267,0.00018028,2]
[362285638,1748157046425,-392.16452115,0.00018028,2]
[362285639,1748157046434,-500.0,0.00018028,2]
[362285640,1748157046443,-275.18966371,0.00018028,2]
[362285641,1748157046453,-500.0,0.00018028,2]
[362285642,1748157046462,-692.13757267,0.00018028,2]
[362285643,1748157046472,-500.0,0.00018028,2]
[362285644,1748157046481,-500.0,0.00018028,2]
[362285645,1748157046491,-692.13757267,0.00018028,2]
[362285646,1748157046500,-216.65645426,0.00018028,2]
[362285647,1748157046509,-692.13757267,0.00018028,2]
[362285648,1748157046518,-500.0,0.00018028,2]
[362285649,1748157046527,-500.0,0.00018028,2]
[362285650,1748157046536,-633.70298662,0.00018028,2]
[362285651,1748157046546,-692.13757267,0.00018028,2]
[362285652,1748157046555,-692.13757267,0.00018028,2]
[362285653,1748157046565,-692.13757267,0.00018028,2]
[362285654,1748157046574,-692.13757267,0.00018028,2]
[362285655,1748157046584,-692.13757267,0.00018028,2]
[362285656,1748157046593,-500.0,0.00018028,2]
[362285657,1748157046602,-692.13757267,0.00018028,2]
[362285658,1748157046612,-500.0,0.00018028,2]
[362285659,1748157046622,-692.13757267,0.00018028,2]
[362285660,1748157046631,-692.13757267,0.00018028,2]
[362285661,1748157046641,-500.0,0.00018028,2]
[362285662,1748157046650,-692.13757267,0.00018028,2]
[362285663,1748157046662,-500.0,0.00018028,2]
[362285664,1748157046672,-139.54467246,0.00018028,2]
[362285665,1748157046684,-552.59290021,0.00018028,2]
[362285666,1748157046694,-692.13757267,0.00018028,2]
[362285667,1748157046703,-692.13757267,0.00018028,2]
[362285668,1748157046712,-500.0,0.00018028,2]
[362285669,1748157046722,-692.13757267,0.00018028,2]
[362285670,1748157046732,-692.13757267,0.00018028,2]
[362285671,1748157046741,-692.13757267,0.00018028,2]
[362285672,1748157046751,-500.0,0.00018028,2]
[362285673,1748157046760,-692.13757267,0.00018028,2]
[362285674,1748157046769,-692.13757267,0.00018028,2]
[362285675,1748157046778,-500.0,0.00018028,2]
[362285676,1748157046787,-692.13757267,0.00018028,2]
[362285677,1748157046797,-692.13757267,0.00018028,2]
[362285678,1748157046806,-692.13757267,0.00018028,2]
[362285679,1748157046815,-692.13757267,0.00018028,2]
[362285680,1748157046824,-692.13757267,0.00018028,2]
[362285681,1748157046833,-692.13757267,0.00018028,2]
[362285682,1748157046843,-692.13757267,0.00018028,2]
[362285683,1748157046852,-692.13757267,0.00018028,2]
[362285684,1748157046861,-692.13757267,0.00018028,2]
[362285685,1748157046870,-692.13757267,0.00018028,2]
[362285686,1748157046879,-692.13757267,0.00018028,2]
[362285687,1748157046889,-692.13757267,0.00018028,2]
[362285688,1748157046898,-692.13757267,0.00018028,2]
[362285689,1748157046909,-692.13757267,0.00018028,2]
[362285690,1748157046918,-692.13757267,0.00018028,2]
[362285691,1748157046928,-692.13757267,0.00018028,2]
[362285692,1748157046942,-692.13757267,0.00018028,2]
[362285693,1748157046951,-692.13757267,0.00018028,2]
[362285694,1748157046960,-692.13757267,0.00018028,2]
[362285695,1748157046971,-692.13757267,0.00018028,2]
[362285696,1748157046980,-692.13757267,0.00018028,2]
[362285697,1748157046989,-692.13757267,0.00018028,2]
[362285698,1748157046998,-692.13757267,0.00018028,2]
[362285699,1748157047008,-692.13757267,0.00018028,2]
[362285700,1748157047018,-692.13757267,0.00018028,2]
[362285701,1748157047027,-692.13757267,0.00018028,2]
[362285702,1748157047036,-692.13757267,0.00018028,2]
[362285703,1748157047046,-692.13757267,0.00018028,2]
[362285704,1748157047055,-692.13757267,0.00018028,2]
[362285705,1748157047064,-692.13757267,0.00018028,2]
[362285706,1748157047073,-692.13757267,0.00018028,2]
[362285707,1748157047083,-692.13757267,0.00018028,2]
[362285708,1748157047092,-692.13757267,0.00018028,2]
[362285709,1748157047102,-692.13757267,0.00018028,2]
[362285710,1748157047111,-692.13757267,0.00018028,2]
[362285711,1748157047121,-692.13757267,0.00018028,2]
[362285712,1748157047131,-692.13757267,0.00018028,2]
[362285713,1748157047140,-12652.24558203,0.00018029,3]
[362285714,1748157047150,-24900.0,0.00018031,2]
[362285715,1748157047161,-357.55,0.00018093,2]
[362285716,1748157047170,-1408.067756,0.0001815,2]
[362285717,1748157047180,-250.0,0.00018243,2]
[362285718,1748157047189,-420.0,0.00018311,2]
[362285719,1748157047198,-152.0,0.00018586,2]
[362285720,1748157047208,-165.0993129,0.00018637,2]
[362285721,1748157047217,-397.27,0.00018716,2]
[362285722,1748157047226,-266.67629496,0.000189,2]
[362285723,1748157047236,-972.12132878,0.00019078,2]
[362285724,1748157047246,-160.0,0.00019139,2]
[362285725,1748157047256,-160.0,0.00019177,2]
[362285726,1748157047266,-500.0,0.00019177,2]
[362285727,1748157047276,-500.0,0.00019177,2]
[362285728,1748157047286,-439.66932021,0.00019177,2]
[362285729,1748157047296,-500.0,0.00019177,2]
[362285730,1748157047305,-500.0,0.00019177,2]
[362285731,1748157047314,-349.01026006,0.00019177,2]
[362285732,1748157047323,-500.0,0.00019177,2]
[362285733,1748157047333,-500.0,0.00019177,2]
[362285734,1748157047343,-430.34266362,0.00019178,2]
[362285735,1748157047352,-217.32293422,0.00019178,2]
[362285736,1748157047361,-159.30589285,0.00019178,2]
[362285737,1748157047370,-430.0,0.00019178,2]
[362285738,1748157047379,-430.0,0.00019178,2]
[362285739,1748157047389,-430.0,0.00019178,2]
[362285740,1748157047399,-432.80904633,0.00019178,2]
[362285741,1748157047410,-405.52953851,0.00019178,2]
[362285742,1748157047420,-404.49380786,0.00019178,2]
[362285743,1748157047429,-430.0,0.00019178,2]
[362285744,1748157047439,-425.0,0.00019178,2]
[362285745,1748157047448,-430.0,0.00019178,2]
[362285746,1748157047457,-430.0,0.00019178,2]
[362285747,1748157047466,-430.0,0.00019178,2]
[362285748,1748157047474,-430.0,0.00019178,2]
[362285749,1748157047484,-430.0,0.00019178,2]
[362285750,1748157047493,-170.37185391,0.00019178,2]
[362285751,1748157047502,-430.0,0.00019178,2]
[362285752,1748157047512,-340.0,0.00019178,2]
[362285753,1748157047521,-430.0,0.00019178,2]
[362285754,1748157047531,-477.11903071,0.00019178,2]
[362285755,1748157047541,-430.0,0.00019178,2]
[362285756,1748157047550,-311.65227483,0.00019178,2]
[362285757,1748157047559,-448.2075502,0.00019178,2]
[362285758,1748157047569,-430.0,0.00019178,2]
[362285759,1748157047579,-430.0,0.00019178,2]
[362285760,1748157047588,-301.76805248,0.00019178,2]
[362285761,1748157047598,-290.9141955,0.00019178,2]
[362285762,1748157047607,-442.82694958,0.00019178,2]
[362285763,1748157047617,-439.3505174,0.00019178,2]
[362285764,1748157047626,-432.29371893,0.00019178,2]
[362285765,1748157047636,-433.96075232,0.00019178,2]
[362285766,1748157047645,-300.0,0.00019178,2]
[362285767,1748157047655,-352.46745027,0.00019178,2]
[362285768,1748157047666,-444.63352979,0.00019178,2]
[362285769,1748157047676,-434.43049342,0.00019178,2]
[362285770,1748157047685,-447.85509667,0.00019178,2]
[362285771,1748157047694,-430.0,0.00019178,2]
[362285772,1748157047704,-352.93611112,0.00019178,2]
[362285773,1748157047713,-430.0,0.00019178,2]
[362285774,1748157047723,-446.63820464,0.00019178,2]
[362285775,1748157047732,-445.30183441,0.00019178,2]
[362285776,1748157047741,-430.0,0.00019178,2]
[362285777,1748157047751,-1024.89975299,0.00019178,2]
[362285778,1748157047760,-432.78524902,0.00019178,2]
[362285779,1748157047769,-439.93442178,0.00019178,2]
[362285780,1748157047778,-439.09821799,0.00019178,2]
[362285781,1748157047788,-430.0,0.00019178,2]
[362285782,1748157047798,-343.007722,0.00019178,2]
[362285783,1748157047808,-440.57143784,0.00019178,2]
[362285784,1748157047817,-443.31274331,0.00019178,2]
[362285785,1748157047827,-431.10105077,0.00019178,2]
[362285786,1748157047837,-430.0,0.00019178,2]
[362285787,1748157047846,-438.25789404,0.00019178,2]
[362285788,1748157047855,-439.84395449,0.00019178,2]
[362285789,1748157047865,-353.7244745,0.00019178,2]
[362285790,1748157047875,-430.0,0.00019178,2]
[362285791,1748157047884,-430.0,0.00019178,2]
[362285792,1748157047894,-442.98139453,0.00019178,2]
[362285793,1748157047904,-430.0,0.00019178,2]
[362285794,1748157047916,-430.0,0.00019178,2]
[362285795,1748157047925,-443.30218969,0.00019178,2]
[362285796,1748157047938,-348.51129988,0.00019178,2]
[362285797,1748157047946,-353.71231112,0.00019178,2]
[362285798,1748157047956,-512.26967733,0.00019178,2]
[362285799,1748157047965,-444.19701217,0.00019178,2]
[362285800,1748157047975,-440.97854868,0.00019178,2]
[362285801,1748157047984,-430.0,0.00019178,2]
[362285802,1748157047994,-430.0,0.00019178,2]
[362285803,1748157048003,-430.0,0.00019178,2]
[362285804,1748157048014,-430.0,0.00019178,2]
[362285805,1748157048025,-430.0,0.00019178,2]
[362285806,1748157048035,-430.0,0.00019178,2]
[362285807,1748157048045,-430.0,0.00019178,2]
[362285808,1748157048055,-430.0,0.00019178,2]
[362285809,1748157048064,-430.0,0.00019178,2]
[362285810,1748157048074,-465.43150531,0.00019178,2]
[362285811,1748157048084,-348.63535569,0.00019178,2]
[362285812,1748157048094,-442.68339239,0.00019178,2]
[362285813,1748157048104,-430.0,0.00019178,2]
[362285814,1748157048114,-430.0,0.00019178,2]
[362285815,1748157048123,-430.0,0.00019178,2]
[362285816,1748157048133,-430.0,0.00019178,2]
[362285817,1748157048143,-430.0,0.00019178,2]
[362285818,1748157048153,-408.65311017,0.00019178,2]
[362285819,1748157048166,-430.0,0.00019178,2]
[362285820,1748157048175,-430.0,0.00019178,2]
[362285821,1748157048185,-443.5571818,0.00019178,2]
[362285822,1748157048194,-430.0,0.00019178,2]
[362285823,1748157048204,-173.58219566,0.00019178,2]
[362285824,1748157048214,-444.98008008,0.00019178,2]
[362285825,1748157048223,-430.0,0.00019178,2]
[362285826,1748157048232,-168.83503069,0.00019178,2]
[362285827,1748157048242,-442.82451361,0.00019178,2]
[362285828,1748157048251,-430.0,0.00019178,2]
[362285829,1748157048261,-482.15082175,0.00019178,2]
[362285830,1748157048270,-430.0,0.00019178,2]
[362285831,1748157048280,-430.0,0.00019178,2]
[362285832,1748157048289,-298.79108871,0.00019178,2]
[362285833,1748157048298,-430.0,0.00019178,2]
[362285834,1748157048307,-430.0,0.00019178,2]
[362285835,1748157048412,-430.0,0.00019178,2]
[362285836,1748157048421,-442.91473207,0.00019178,2]
[362285837,1748157048431,-430.0,0.00019178,2]
[362285838,1748157048440,-430.0,0.00019178,2]
[362285839,1748157048450,-430.0,0.00019178,2]
[362285840,1748157048459,-430.0,0.00019178,2]
[362285841,1748157048468,-430.0,0.00019178,2]
[362285842,1748157048477,-470.45077183,0.00019178,2]
[362285843,1748157048486,-302.65671009,0.00019178,2]
[362285844,1748157048496,-500.0,0.00019178,2]
[362285845,1748157048505,-430.0,0.00019178,2]
[362285846,1748157048514,-430.0,0.00019178,2]
[362285847,1748157048523,-304.35003441,0.00019178,2]
[362285848,1748157048532,-4430.27,0.00019178,2]
[362285849,1748157048541,-433.19112572,0.00019178,2]
[362285850,1748157048550,-430.0,0.00019178,2]
[362285851,1748157048559,-430.0,0.00019178,2]
[362285852,1748157048568,-430.0,0.00019178,2]
[362285853,1748157048577,-434.01316259,0.00019178,2]
[362285854,1748157048587,-430.0,0.00019178,2]
[362285855,1748157048596,-430.0,0.00019178,2]
[362285856,1748157048605,-432.31616604,0.00019178,2]
[362285857,1748157048615,-458.13971711,0.00019178,2]
[362285858,1748157048624,-430.0,0.00019178,2]
[362285859,1748157048634,-430.0,0.00019178,2]
[362285860,1748157048643,-430.0,0.00019178,2]
[362285861,1748157048652,-442.26922222,0.00019178,2]
[362285862,1748157048661,-430.0,0.00019178,2]
[362285863,1748157048671,-430.0,0.00019178,2]
[362285864,1748157048680,-435.19012237,0.00019178,2]
[362285865,1748157048690,-445.2196465,0.00019178,2]
[362285866,1748157048699,-430.0,0.00019178,2]
[362285867,1748157048708,-483.50776994,0.00019178,2]
[362285868,1748157048718,-346.53926963,0.00019178,2]
[362285869,1748157048727,-437.76449362,0.00019178,2]
[362285870,1748157048736,-297.09289174,0.00019178,2]
[362285871,1748157048746,-430.0,0.00019178,2]
[362285872,1748157048755,-430.0,0.00019178,2]
[362285873,1748157048764,-423.73878766,0.00019178,2]
[362285874,1748157048774,-502.99250366,0.00019178,2]
[362285875,1748157048783,-301.20254369,0.00019178,2]
[362285876,1748157048793,-430.0,0.00019178,2]
[362285877,1748157048803,-430.0,0.00019178,2]
[362285878,1748157048813,-383.55452504,0.00019178,2]
[362285879,1748157048822,-404.29426956,0.00019178,2]
[362285880,1748157048831,-300.0,0.00019178,2]
[362285881,1748157048840,-225.9076902,0.00019178,2]
[362285882,1748157048850,-450.9493371,0.00019178,2]
[362285883,1748157048859,-430.0,0.00019178,2]
[362285884,1748157048869,-430.0,0.00019178,2]
[362285885,1748157048879,-430.0,0.00019178,2]
[362285886,1748157048888,-430.0,0.00019178,2]
[362285887,1748157048898,-437.06822049,0.00019178,2]
[362285888,1748157048907,-430.0,0.00019178,2]
[362285889,1748157048918,-430.0,0.00019178,2]
[362285890,1748157048927,-430.0,0.00019178,2]
[362285891,1748157048938,-430.0,0.00019178,2]
[362285892,1748157048948,-430.0,0.00019178,2]
[362285893,1748157048957,-162.5,0.00019178,2]
[362285894,1748157048966,-353.07897008,0.00019178,2]
[362285895,1748157048976,-430.0,0.00019178,2]
[362285896,1748157048985,-406.54609328,0.00019178,2]
[362285897,1748157048995,-376.07825389,0.00019178,2]
[362285898,1748157049004,-420.0,0.00019178,2]
[362285899,1748157049016,-430.0,0.00019178,2]
[362285900,1748157049025,-430.0,0.00019178,2]
[362285901,1748157049034,-430.0,0.00019178,2]
[362285902,1748157049044,-420.0,0.00019178,2]
[362285903,1748157049053,-430.0,0.00019178,2]
[362285904,1748157049062,-460.92098068,0.00019178,2]
[362285905,1748157049071,-430.0,0.00019178,2]
[362285906,1748157049081,-432.72573538,0.00019178,2]
[362285907,1748157049090,-437.74588238,0.00019178,2]
[362285908,1748157049100,-151.0,0.00019178,2]
[362285909,1748157049110,-470.0,0.00019178,2]
[362285910,1748157049119,-430.0,0.00019178,2]
[362285911,1748157049128,-430.0,0.00019178,2]
[362285912,1748157049138,-430.0,0.00019178,2]
[362285913,1748157049147,-408.66051867,0.00019178,2]
[362285914,1748157049156,-440.44462592,0.00019178,2]
[362285915,1748157049167,-709.28,0.00019178,2]
[362285916,1748157049177,-366.58354332,0.00019178,2]
[362285917,1748157049186,-350.35385593,0.00019178,2]
[362285918,1748157049200,-430.0,0.00019178,2]
[362285919,1748157049210,-430.0,0.00019178,2]
[362285920,1748157049220,-430.0,0.00019178,2]
[362285921,1748157049230,-508.68398293,0.00019178,2]
[362285922,1748157049240,-435.18956624,0.00019178,2]
[362285923,1748157049250,-430.0,0.00019178,2]
[362285924,1748157049259,-430.0,0.00019178,2]
[362285925,1748157049269,-430.0,0.00019178,2]
[362285926,1748157049279,-408.90697352,0.00019178,2]
[362285927,1748157049288,-509.21926245,0.00019178,2]
[362285928,1748157049298,-430.0,0.00019178,2]
[362285929,1748157049307,-430.0,0.00019178,2]
[362285930,1748157049317,-454.31507374,0.00019178,2]
[362285931,1748157049327,-430.0,0.00019178,2]
[362285932,1748157049336,-430.0,0.00019178,2]
[362285933,1748157049346,-332.4289685,0.00019178,2]
[362285934,1748157049356,-430.0,0.00019178,2]
[362285935,1748157049366,-430.0,0.00019178,2]
[362285936,1748157049375,-430.0,0.00019178,2]
[362285937,1748157049384,-430.0,0.00019178,2]
[362285938,1748157049393,-430.0,0.00019178,2]
[362285939,1748157049403,-430.0,0.00019178,2]
[362285940,1748157049413,-430.0,0.00019178,2]
[362285941,1748157049422,-363.01972267,0.00019178,2]
[362285942,1748157049431,-451.10032663,0.00019178,2]
[362285943,1748157049440,-430.0,0.00019178,2]
[362285944,1748157049450,-430.0,0.00019178,2]
[362285945,1748157049459,-430.0,0.00019178,2]
[362285946,1748157049469,-573.26146719,0.00019178,2]
[362285947,1748157049478,-458.3151998,0.00019178,2]
[362285948,1748157049487,-430.0,0.00019178,2]
[362285949,1748157049496,-430.0,0.00019178,2]
[362285950,1748157049506,-440.0,0.00019178,2]
[362285951,1748157049515,-430.0,0.00019178,2]
[362285952,1748157049524,-485.1697356,0.00019178,2]
[362285953,1748157049533,-506.87875889,0.00019178,2]
[362285954,1748157049542,-430.0,0.00019178,2]
[362285955,1748157049551,-430.0,0.00019178,2]
[362285956,1748157049560,-487.12,0.00019178,2]
[362285957,1748157049570,-430.0,0.00019178,2]
[362285958,1748157049579,-430.0,0.00019178,2]
[362285959,1748157049587,-505.62373626,0.00019178,2]
[362285960,1748157049597,-430.0,0.00019178,2]
[362285961,1748157049606,-430.0,0.00019178,2]
[362285962,1748157049615,-430.0,0.00019178,2]
[362285963,1748157049625,-430.0,0.00019178,2]
[362285964,1748157049635,-575.81,0.00019178,2]
[362285965,1748157049643,-430.0,0.00019178,2]
[362285966,1748157049652,-430.0,0.00019178,2]
[362285967,1748157049662,-423.91077478,0.00019178,2]
[362285968,1748157049671,-430.0,0.00019178,2]
[362285969,1748157049680,-430.0,0.00019178,2]
[362285970,1748157049689,-430.0,0.00019178,2]
[362285971,1748157049699,-400.0,0.00019178,2]
[362285972,1748157049708,-430.0,0.00019178,2]
[362285973,1748157049717,-430.0,0.00019178,2]
[362285974,1748157049726,-430.0,0.00019178,2]
[362285975,1748157049735,-430.0,0.00019178,2]
[362285976,1748157049745,-430.0,0.00019178,2]
[362285977,1748157049754,-430.0,0.00019178,2]
[362285978,1748157049764,-430.0,0.00019178,2]
[362285979,1748157049773,-430.0,0.00019178,2]
[362285980,1748157049783,-430.0,0.00019178,2]
[362285981,1748157049792,-432.23953005,0.00019178,2]
[362285982,1748157049802,-430.0,0.00019178,2]
[362285983,1748157049812,-430.0,0.00019178,2]
[362285984,1748157049822,-430.0,0.00019178,2]
[362285985,1748157049834,-432.16107037,0.00019178,2]
[362285986,1748157049843,-430.0,0.00019178,2]
[362285987,1748157049853,-584.69,0.00019178,2]
[362285988,1748157049863,-430.0,0.00019178,2]
[362285989,1748157049873,-437.228425,0.00019178,2]
[362285990,1748157049883,-441.02982276,0.00019178,2]
[362285991,1748157049893,-460.72285219,0.00019178,2]
[362285992,1748157049903,-430.0,0.00019178,2]
[362285993,1748157049913,-1400.02,0.00019178,2]
[362285994,1748157049922,-441.45730168,0.00019178,2]
[362285995,1748157049932,-431.50110885,0.00019178,2]
[362285996,1748157049943,-430.0,0.00019178,2]
[362285997,1748157049953,-430.0,0.00019178,2]
[362285998,1748157049963,-430.0,0.00019178,2]
[362285999,1748157049973,-438.95695448,0.00019178,2]
[362286000,1748157049984,-430.0,0.00019178,2]
[362286001,1748157049994,-430.0,0.00019178,2]
[362286002,1748157050004,-430.0,0.00019178,2]
[362286003,1748157050015,-430.0,0.00019178,2]
[362286004,1748157050025,-430.0,0.00019178,2]
[362286005,1748157050035,-430.0,0.00019178,2]
[362286006,1748157050045,-412.73114451,0.00019178,2]
[362286007,1748157050054,-430.0,0.00019178,2]
[362286008,1748157050064,-430.0,0.00019178,2]
[362286009,1748157050074,-430.0,0.00019178,2]
[362286010,1748157050083,-310.0,0.00019178,2]
[362286011,1748157050093,-402.8842117,0.00019178,2]
[362286012,1748157050103,-800.36,0.00019178,2]
[362286013,1748157050112,-430.0,0.00019178,2]
[362286014,1748157050122,-437.56085272,0.00019178,2]
[362286015,1748157050131,-430.0,0.00019178,2]
[362286016,1748157050140,-430.0,0.00019178,2]
[362286017,1748157050150,-430.0,0.00019178,2]
[362286018,1748157050161,-430.0,0.00019178,2]
[362286019,1748157050170,-240.64294973,0.00019178,2]
[362286020,1748157050180,-430.0,0.00019178,2]
[362286021,1748157050189,-455.89153776,0.00019178,2]
[362286022,1748157050199,-430.0,0.00019178,2]
[362286023,1748157050208,-430.0,0.00019178,2]
[362286024,1748157050217,-430.0,0.00019178,2]
[362286025,1748157050227,-459.55452127,0.00019178,2]
[362286026,1748157050236,-774.78,0.00019178,2]
[362286027,1748157050245,-430.0,0.00019178,2]
[362286028,1748157050254,-430.0,0.00019178,2]
[362286029,1748157050264,-430.0,0.00019178,2]
[362286030,1748157050273,-151.0,0.00019178,2]
[362286031,1748157050283,-430.0,0.00019178,2]
[362286032,1748157050292,-430.0,0.00019178,2]
[362286033,1748157050302,-430.0,0.00019178,2]
[362286034,1748157050311,-403.02203347,0.00019178,2]
[362286035,1748157050321,-408.99994339,0.00019178,2]
[362286036,1748157050331,-430.0,0.00019178,2]
[362286037,1748157050340,-536.07569883,0.00019178,2]
[362286038,1748157050351,-430.0,0.00019178,2]
[362286039,1748157050360,-430.0,0.00019178,2]
[362286040,1748157050371,-1540.49,0.00019178,2]
[362286041,1748157050381,-430.0,0.00019178,2]
[362286042,1748157050391,-430.0,0.00019178,2]
[362286043,1748157050400,-430.0,0.00019178,2]
[362286044,1748157050409,-430.0,0.00019178,2]
[362286045,1748157050421,-430.0,0.00019178,2]
[362286046,1748157050431,-449.64784022,0.00019178,2]
[362286047,1748157050440,-430.0,0.00019178,2]
[362286048,1748157050449,-453.94090934,0.00019178,2]
[362286049,1748157050458,-430.0,0.00019178,2]
[362286050,1748157050467,-430.0,0.00019178,2]
[362286051,1748157050476,-430.0,0.00019178,2]
[362286052,1748157050486,-409.09851026,0.00019178,2]
[362286053,1748157050495,-430.0,0.00019178,2]
[362286054,1748157050505,-430.0,0.00019178,2]
[362286055,1748157050515,-430.0,0.00019178,2]
[362286056,1748157050525,-503.06572187,0.00019178,2]
[362286057,1748157050534,-430.0,0.00019178,2]
[362286058,1748157050543,-557.92733452,0.00019178,2]
[362286059,1748157050638,-407.72628745,0.00019178,2]
[362286060,1748157050648,-589.21,0.00019178,2]
[362286061,1748157050658,-430.0,0.00019178,2]
[362286062,1748157050668,-430.0,0.00019178,2]
[362286063,1748157050677,-151.0,0.00019178,2]
[362286064,1748157050686,-365.16011159,0.00019178,2]
[362286065,1748157050695,-430.0,0.00019178,2]
[362286066,1748157050704,-430.0,0.00019178,2]
[362286067,1748157050714,-430.0,0.00019178,2]
[362286068,1748157050723,-681.27,0.00019178,2]
[362286069,1748157050732,-1442.16,0.00019178,2]
[362286070,1748157050741,-438.74058442,0.00019178,2]
[362286071,1748157050750,-401.79714505,0.00019178,2]
[362286072,1748157050759,-448.44599961,0.00019178,2]
[362286073,1748157050768,-430.0,0.00019178,2]
[362286074,1748157050778,-430.0,0.00019178,2]
[362286075,1748157050787,-202.68,0.00019178,2]
[362286076,1748157050797,-430.0,0.00019178,2]
[362286077,1748157050806,-467.94894765,0.00019178,2]
[362286078,1748157050815,-430.0,0.00019178,2]
[362286079,1748157050824,-430.0,0.00019178,2]
[362286080,1748157050834,-430.0,0.00019178,2]
[362286081,1748157050843,-430.0,0.00019178,2]
[362286082,1748157050856,-430.0,0.00019178,2]
[362286083,1748157050865,-430.0,0.00019178,2]
[362286084,1748157050874,-658.49,0.00019178,2]
[362286085,1748157050883,-430.0,0.00019178,2]
[362286086,1748157050893,-361.18465459,0.00019178,2]
[362286087,1748157050902,-430.0,0.00019178,2]
[362286088,1748157050912,-430.0,0.00019178,2]
[362286089,1748157050922,-673.43,0.00019178,2]
[362286090,1748157050933,-430.0,0.00019178,2]
[362286091,1748157050944,-430.0,0.00019178,2]
[362286092,1748157050953,-271.83498934,0.00019178,2]
[362286093,1748157050962,-430.0,0.00019178,2]
[362286094,1748157050972,-430.0,0.00019178,2]
[362286095,1748157050982,-430.0,0.00019178,2]
[362286096,1748157050991,-207.4,0.00019325,2]
[362286097,1748157051001,-500.28861401,0.00019328,2]
[362286098,1748157051012,-502.45431058,0.00019328,2]
[362286099,1748157051022,-500.0,0.00019395,2]
[362286100,1748157051031,-500.0,0.00019395,2]
[362286101,1748157051040,-443.92716718,0.00019452,2]
[362286102,1748157051051,-254.80698275,0.00019452,2]
[362286103,1748157051060,-430.0,0.00019452,2]
[362286104,1748157051071,-432.30049304,0.00019452,2]
[362286105,1748157051081,-430.0,0.00019452,2]
[362286106,1748157051090,-326.89246808,0.00019452,2]
[362286107,1748157051099,-151.0,0.00019452,2]
[362286108,1748157051108,-454.74116748,0.00019452,2]
[362286109,1748157051117,-430.0,0.00019452,2]